{"text_format":"1","workbook":"xlsx","n_sheets":2,"sheets":["Gruppen","Parameter"],"not_rendered":{"charts":0,"images":4,"macros":1,"external_links":0,"defined_names":92,"comments":0,"pivot_tables":0},"unopened":[],"bounds":{"document_bytes":16777216,"sheet_cells":100000,"rows_first":2000,"rows_last":500,"rows_between":2000,"halvings":0,"cell_chars":16384,"cell_head_chars":4096},"cells_cut":0,"cells_raw":0,"read":"whole","date_system":"1900"}

{"sheet":"Gruppen","index":0,"n_rows":136,"n_cols":7,"rows_kept":136,"cut":false,"hidden":false,"merged":[[127,1,127,2],[134,1,134,2],[85,1,85,2],[92,1,92,2],[99,1,99,2],[106,1,106,2],[113,1,113,2],[120,1,120,2],[78,1,78,2],[1,1,1,2],[8,1,8,2],[15,1,15,2],[22,1,22,2],[29,1,29,2],[36,1,36,2],[43,1,43,2],[50,1,50,2],[57,1,57,2],[64,1,64,2],[71,1,71,2]]}
[{"$f":"IFERROR(VLOOKUP(B1,Sektionen,2,0),\"\")","v":""},{"$f":"IF(ISBLANK(Sektionsname),PlatzhalterSektion,Sektionsname)","v":"[  Sélectionner une Section ! ]"},null,null,{"$f":"IF(ISBLANK(defRunde),\"- - -\",defRunde)","v":"Tour 1"}]
[{"$f":"txtGruppe","v":"Groupe"},null,null,null,{"$f":"SUM(E4:E8)","v":0}]
[null,null,null,{"$f":"txtWaffe","v":"Arme"},{"$f":"txtResultat","v":"Résultat"}]
[]
[]
[]
[null,null,null,null,null,null,{"$f":"Version","v":"v20220403"}]
[]
[{"$f":"txtGruppe","v":"Groupe"},null,null,null,{"$f":"SUM(E11:E15)","v":0}]
[null,null,null,{"$f":"txtWaffe","v":"Arme"},{"$f":"txtResultat","v":"Résultat"}]
[]
[]
[]
[]
[]
[{"$f":"txtGruppe","v":"Groupe"},null,null,null,{"$f":"SUM(E18:E22)","v":0}]
[null,null,null,{"$f":"txtWaffe","v":"Arme"},{"$f":"txtResultat","v":"Résultat"}]
[]
[]
[]
[]
[]
[{"$f":"txtGruppe","v":"Groupe"},null,null,null,{"$f":"SUM(E25:E29)","v":0}]
[null,null,null,{"$f":"txtWaffe","v":"Arme"},{"$f":"txtResultat","v":"Résultat"}]
[]
[]
[]
[]
[]
[{"$f":"txtGruppe","v":"Groupe"},null,null,null,{"$f":"SUM(E32:E36)","v":0}]
[null,null,null,{"$f":"txtWaffe","v":"Arme"},{"$f":"txtResultat","v":"Résultat"}]
[]
[]
[]
[]
[]
[{"$f":"txtGruppe","v":"Groupe"},null,null,null,{"$f":"SUM(E39:E43)","v":0}]
[null,null,null,{"$f":"txtWaffe","v":"Arme"},{"$f":"txtResultat","v":"Résultat"}]
[]
[]
[]
[]
[]
[{"$f":"txtGruppe","v":"Groupe"},null,null,null,{"$f":"SUM(E46:E50)","v":0}]
[null,null,null,{"$f":"txtWaffe","v":"Arme"},{"$f":"txtResultat","v":"Résultat"}]
[]
[]
[]
[]
[]
[{"$f":"txtGruppe","v":"Groupe"},null,null,null,{"$f":"SUM(E53:E57)","v":0}]
[null,null,null,{"$f":"txtWaffe","v":"Arme"},{"$f":"txtResultat","v":"Résultat"}]
[]
[]
[]
[]
[]
[{"$f":"txtGruppe","v":"Groupe"},null,null,null,{"$f":"SUM(E60:E64)","v":0}]
[null,null,null,{"$f":"txtWaffe","v":"Arme"},{"$f":"txtResultat","v":"Résultat"}]
[]
[]
[]
[]
[]
[{"$f":"txtGruppe","v":"Groupe"},null,null,null,{"$f":"SUM(E67:E71)","v":0}]
[null,null,null,{"$f":"txtWaffe","v":"Arme"},{"$f":"txtResultat","v":"Résultat"}]
[]
[]
[]
[]
[]
[{"$f":"txtGruppe","v":"Groupe"},null,null,null,{"$f":"SUM(E74:E78)","v":0}]
[null,null,null,{"$f":"txtWaffe","v":"Arme"},{"$f":"txtResultat","v":"Résultat"}]
[]
[]
[]
[]
[]
[{"$f":"txtGruppe","v":"Groupe"},null,null,null,{"$f":"SUM(E81:E85)","v":0}]
[null,null,null,{"$f":"txtWaffe","v":"Arme"},{"$f":"txtResultat","v":"Résultat"}]
[]
[]
[]
[]
[]
[{"$f":"txtGruppe","v":"Groupe"},null,null,null,{"$f":"SUM(E88:E92)","v":0}]
[null,null,null,{"$f":"txtWaffe","v":"Arme"},{"$f":"txtResultat","v":"Résultat"}]
[]
[]
[]
[]
[]
[{"$f":"txtGruppe","v":"Groupe"},null,null,null,{"$f":"SUM(E95:E99)","v":0}]
[null,null,null,{"$f":"txtWaffe","v":"Arme"},{"$f":"txtResultat","v":"Résultat"}]
[]
[]
[]
[]
[]
[{"$f":"txtGruppe","v":"Groupe"},null,null,null,{"$f":"SUM(E102:E106)","v":0}]
[null,null,null,{"$f":"txtWaffe","v":"Arme"},{"$f":"txtResultat","v":"Résultat"}]
[]
[]
[]
[]
[]
[{"$f":"txtGruppe","v":"Groupe"},null,null,null,{"$f":"SUM(E109:E113)","v":0}]
[null,null,null,{"$f":"txtWaffe","v":"Arme"},{"$f":"txtResultat","v":"Résultat"}]
[]
[]
[]
[]
[]
[{"$f":"txtGruppe","v":"Groupe"},null,null,null,{"$f":"SUM(E116:E120)","v":0}]
[null,null,null,{"$f":"txtWaffe","v":"Arme"},{"$f":"txtResultat","v":"Résultat"}]
[]
[]
[]
[]
[]
[{"$f":"txtGruppe","v":"Groupe"},null,null,null,{"$f":"SUM(E123:E127)","v":0}]
[null,null,null,{"$f":"txtWaffe","v":"Arme"},{"$f":"txtResultat","v":"Résultat"}]
[]
[]
[]
[]
[]
[{"$f":"txtGruppe","v":"Groupe"},null,null,null,{"$f":"SUM(E130:E134)","v":0}]
[null,null,null,{"$f":"txtWaffe","v":"Arme"},{"$f":"txtResultat","v":"Résultat"}]
[]
[]
[]
[]
[]
[{"$f":"txtGruppe","v":"Groupe"},null,null,null,{"$f":"SUM(E137:E141)","v":0}]
[null,null,null,{"$f":"txtWaffe","v":"Arme"},{"$f":"txtResultat","v":"Résultat"}]

{"sheet":"Parameter","index":1,"n_rows":110,"n_cols":13,"rows_kept":110,"cut":false,"hidden":false,"merged":[]}
["Dateiname",{"$f":"D42","v":"Résultats"},null,null,null,null,null,null,"Fixe Texte"]
["Sektionsname",null,null,null,null,null,null,null,{"$f":"fctSprache(J2,defSprache)","v":"Groupe"},"Gruppe","Groupe"]
["Runde",{"$f":"VLOOKUP(Runde,Runden,2,0)","v":"Tour 1"},1,null,null,null,null,null,{"$f":"fctSprache(J3,defSprache)","v":"Arme"},"Waffe","Arme"]
["Bezirk","Gruyère",null,null,null,null,null,null,{"$f":"fctSprache(J4,defSprache)","v":"Résultat"},"Resultat","Résultat"]
["Sprache",1]
["Platzhalter",1]
["SGM oder SGMJ",0,null,null,null,null,null,null,"Felder",null,{"$f":"fctSprache(L7,SGMtyp)","v":"FelderSGM"},"FelderSGM","FelderSGMJ"]
[]
["Version","v20220403",null,null,null,null,null,null,"A"]
["Anzahl Gruppenblöcke",20,"Anzahl Gruppenblöcke im Tabellenblatt",null,null,null,null,null,"D"]
[null,null,null,null,null,null,null,null,"E"]
[]
["Sektion","Sektionsnr",null,"Runde",null,null,null,null,"JS"]
["Arconciel","1.10.0.01.205",null,1,{"$f":"fctSprache(F14,defSprache)","v":"Tour 1"},"Runde 1","Tour 1",null,"JJ"]
["Autigny-Chénens","1.10.0.01.209",null,2,{"$f":"fctSprache(F15,defSprache)","v":"Tour 2"},"Runde 2","Tour 2"]
["Belfaux","1.10.0.01.211"]
["Ecuvillens","1.10.0.01.250",null,"Bezirke",null,null,null,null,"Meldungen"]
["Fribourg","1.10.0.01.267",null,"Broye",null,null,null,null,{"$f":"fctSprache(J18,defSprache)","v":"D'abord sélectionner une section s.v.p."},"Bitte zuerst noch eine Sektion auswählen","D'abord sélectionner une section s.v.p."]
["Le Mouret","1.10.0.01.300",null,"Glâne",null,null,null,null,"Exporter les données","Daten exportieren","Exporter les données"]
["Marly","1.10.0.01.292",null,"Gruyère",null,null,null,null,"Les données ont été exportées dans le fichier :","Die Daten wurden in folgende Datei exportiert:","Les données ont été exportées dans le fichier :"]
["Prez et env.","1.10.0.01.316",null,"Sarine",null,null,null,null,"Toutes les données saisies vont être effacées","Alle bisher erfassten Daten werden gelöscht","Toutes les données saisies vont être effacées"]
["Rosé","1.10.0.01.325",null,"See / Lac",null,null,null,null,"Continuer ?","Weiterfahren ?","Continuer ?"]
["Treyvaux","1.10.0.01.345",null,"Sense",null,null,null,null,"Vider le tableau","Tabelle leeren","Vider le tableau"]
["Vuisternens-en-Ogoz","1.10.0.01.326",null,"Veveyse",null,null,null,null,"Ceci n'est pas un fichier de résultats exporté depuis ce fichier Excel","Dies ist keine aus dieser Excel-Datei exportierte Resultatdatei","Ceci n'est pas un fichier de résultats exporté depuis ce fichier Excel"]
["Alterswil","1.10.0.02.004",null,null,null,null,null,null,"La valeur saisie n'est pas une arme autorisée!","Der eingegeben Wert ist keine erlaubte Waffe!","La valeur saisie n'est pas une arme autorisée!"]
["Bösingen-Laupen","1.10.0.02.013",null,"Sprachen"]
["Giffers-Tentlingen","1.10.0.02.070",null,0,"Deutsch"]
["Heitenried","1.10.0.02.080",null,1,"Français",null,null,null,"Platzhalter Sektion"]
["Plaffeien-Brünisried","1.10.0.02.016",null,null,null,null,null,null,{"$f":"fctSprache(J29,defSprache)","v":"[  Sélectionner une Section ! ]"},"[ Sektion auswählen ! ]","[  Sélectionner une Section ! ]"]
["Plasselb","1.10.0.02.112",null,"Waffen",null,null,"RF"]
["Rechthalten","1.10.0.02.119",null,{"$f":"fctSprache(E31,defSprache)","v":"AL"},"Frei-G","AL",10]
["St. Antoni","1.10.0.02.129",null,"F st","Stagw","F st",20]
["St. Silvester","1.10.0.02.132",null,"F ass 57-03","Stgw 57-03","F ass 57-03",30]
["St. Ursen","1.10.0.02.133",null,"Mousqueton","Karabiner","Mousqueton",40]
["Tafers","1.10.0.02.142",null,"F ass 90 ring","Stgw 90 Ring","F ass 90 ring",50]
["Überstorf","1.10.0.02.147",null,"F ass 90 bloc","Stgw 90 Block","F ass 90 bloc",60]
["Wünnewil-Flamatt","1.10.0.02.163",null,"F ass 57-02","Stgw 57-02","F ass 57-02",70]
["Bas-Intyamon","1.10.0.03.273",null,"F ass 90","Stgw 90","F ass 90",80]
["Botterens","1.10.0.03.214"]
["Broc","1.10.0.03.215"]
["Bulle","1.10.0.03.217",null,"Dateinamen"]
["Charmey","1.10.0.03.224",null,{"$f":"fctSprache(E42,defSprache)","v":"Résultats"},"Resultate","Résultats"]
["Corbières-Cerniat","1.10.0.03.231"]
["Echarlens","1.10.0.03.249",null,"SGMtyp"]
["Gruyères","1.10.0.03.275",null,0,{"$f":"fctSprache(F45,defSprache)","v":"CSG-300"},"SGM-300","CSG-300"]
["Hauteville","1.10.0.03.277",null,1,{"$f":"fctSprache(F46,defSprache)","v":"CSGJ-300"},"SGMJ-300","CSGJ-300"]
["Haut-Intyamon","1.10.0.03.298"]
["Jaun","1.10.0.03.081",null,"maxResultat","SGM","SGMJ"]
["La Roche","1.10.0.03.322",null,{"$f":"fctMaxResultat(E49,SGMtyp)","v":200},200,200]
["La Tour-de-Trême-Le Pâquier","1.10.0.03.344"]
["Le Bry","1.10.0.03.313"]
["Lessoc","1.10.0.03.288"]
["Pont-la-Ville","1.10.0.03.314"]
["Sâles - Vaulruz","1.10.0.03.334"]
["Sorens","1.10.0.03.341"]
["Vuadens","1.10.0.03.358"]
["Agriswil-Ried","1.10.0.04.001"]
["Cordast-Burg-Guschelmuth","1.10.0.04.032"]
["Courgevaux","1.10.0.04.235"]
["Courlevon","1.10.0.04.036"]
["Cournillens","1.10.0.04.237"]
["Courtion","1.10.0.04.239"]
["Cressier-sur-Morat","1.10.0.04.240"]
["Fräschels-Muntelier","1.10.0.04.101"]
["Galmiz","1.10.0.04.068"]
["Gempenach-Büchslen","1.10.0.04.069"]
["Gurmels","1.10.0.04.076"]
["Kerzers","1.10.0.04.082"]
["Liebistorf-Kl.Bösingen","1.10.0.04.089"]
["Murten","1.10.0.04.104"]
["Salvenach-Jeuss","1.10.0.04.135"]
["Ulmiz","1.10.0.04.148"]
["Villarepos-Chandossel","1.10.0.04.353"]
["Vully","1.10.0.04.342"]
["Wallenried","1.10.0.04.362"]
["Billens-Hennens","1.10.0.05.212"]
["Châtonnaye","1.10.0.05.228"]
["Mézières","1.10.0.05.294"]
["Middes","1.10.0.05.295"]
["Prez-vers-Siviriez","1.10.0.05.317"]
["Romont","1.10.0.05.323"]
["Rue","1.10.0.05.327"]
["Siviriez","1.10.0.05.340"]
["Villarsiviriaux","1.10.0.05.354"]
["Villaz-St-Pierre","1.10.0.05.355"]
["Vuisternens-dt-Romont","1.10.0.05.361"]
["Aumont","1.10.0.06.208"]
["Bussy-Morens-Sévaz","1.10.0.06.221"]
["Châbles-Cheyres","1.10.0.06.223"]
["Cugy","1.10.0.06.242"]
["Delley-Portalban","1.10.0.06.243"]
["Domdidier","1.10.0.06.244"]
["Dompierre-Russy","1.10.0.06.246"]
["Estavayer-le-Lac-Lully","1.10.0.06.254"]
["Fétigny","1.10.0.06.256"]
["Font-Châtillon","1.10.0.06.259"]
["Forel-Autavaux-Montbrelloz","1.10.0.06.260"]
["Léchelles","1.10.0.06.296"]
["Murist","1.10.0.06.302"]
["Rueyres-les-Prés","1.10.0.06.328"]
["St-Aubin","1.10.0.06.330"]
["Vallon","1.10.0.06.350"]
["Villeneuve-Surpierre-Praratoud","1.10.0.06.356"]
["Attalens","1.10.0.07.207"]
["Châtel-St-Denis","1.10.0.07.226"]
["Le Crêt","1.10.0.07.241"]
["Porsel","1.10.0.07.315"]
["Semsales","1.10.0.07.339"]
["Beispiel","1.10.0.08.001"]
["Exemple","1.10.0.08.002"]